bitfinex/quotes_BTCUSD_20220211
["timestamp","ask_amount","ask_price","bid_price","bid_amount"]
[1644610708066,0.505,42523.0,42521.0,0.29057688]
[1644610708468,0.00034373,42524.0,42521.0,0.29057688]
[1644610709068,0.058834,42526.0,42521.0,0.29057688]
[1644610709469,0.00047092,42525.0,42521.0,0.29057688]
[1644610709666,0.058837,42523.0,42521.0,0.21057688]
[1644610709871,0.3,42522.0,42520.0,0.058836]
[1644610710073,0.3,42522.0,42504.0,0.1649]
[1644610710074,0.05,42521.0,42513.0,0.117698]
[1644610710274,0.05,42521.0,42515.0,0.00073406]
[1644610710572,0.1,42522.0,42515.0,0.00073406]
[1644610710770,0.058861,42517.0,42515.0,0.00073406]
[1644610712822,0.13448153,42517.0,42515.0,0.00073406]
[1644610713021,0.41918136,42517.0,42515.0,0.00073406]
[1644610713621,0.058861,42517.0,42515.0,0.00073406]
[1644610714020,0.058861,42517.0,42515.0,0.15958906]
[1644610714881,0.11816894,42518.0,42516.0,0.35462481]
[1644610714882,0.00047094,42518.0,42516.0,0.35462481]
[1644610715071,0.235403,42533.0,42516.0,0.35462481]
[1644610715376,0.235403,42533.0,42521.0,0.22264636]
[1644610715377,0.11859633,42529.0,42521.0,0.22264636]
[1644610715573,0.28179081,42532.0,42521.0,0.27264636]
[1644610715871,0.08877886,42530.0,42521.0,0.32264636]
[1644610716073,0.31845585,42526.0,42521.0,0.1]
[1644610716277,0.31845585,42526.0,42520.0,0.117668]
[1644610716278,0.05,42522.0,42520.0,0.117668]
[1644610716478,0.05,42522.0,42516.0,0.00073476]
[1644610716479,0.0433,42521.0,42516.0,0.00073476]
[1644610716673,0.05,42517.0,42516.0,0.00073476]
[1644610716875,0.29802766,42517.0,42516.0,0.00073476]
[1644610717273,0.24802766,42517.0,42516.0,0.00073476]
[1644610717574,0.058872,42508.0,42505.0,0.058872]
[1644610717874,0.058872,42508.0,42503.0,0.11774]
[1644610718072,0.0433,42507.0,42503.0,0.11774]
[1644610719123,0.04377098,42507.0,42503.0,0.11774]
[1644610719321,0.04377098,42507.0,42504.0,0.1]
[1644610719521,0.37629791,42513.0,42505.0,0.058864]
[1644610719522,0.505,42513.0,42505.0,0.058864]
[1644610719720,0.0433,42512.0,42505.0,0.058864]
[1644610719923,0.505,42513.0,42505.0,0.058864]
[1644610720126,0.11837714,42523.0,42505.0,0.058864]
[1644610720425,0.505,42524.0,42505.0,0.058864]
[1644610720426,0.505,42524.0,42516.0,0.20551475]
[1644610720624,0.505,42524.0,42515.0,0.058844]
[1644610720820,0.505,42524.0,42516.0,0.1]
[1644610721021,0.00134164,42517.0,42516.0,0.05073348]
[1644610721221,0.00134164,42517.0,42516.0,0.00073348]
[1644610721823,0.00134164,42517.0,42516.0,0.16842348]
[1644610722121,0.00134164,42517.0,42516.0,0.21842348]
[1644610724569,0.61761298,42524.0,42520.0,0.26360652]
[1644610724769,0.11768,42524.0,42520.0,0.42244552]
[1644610724972,0.505,42530.0,42520.0,0.47244552]
[1644610725171,0.058828,42529.0,42520.0,0.36360652]
[1644610725371,0.505,42530.0,42520.0,0.46360652]
[1644610725671,0.505,42530.0,42529.0,0.31328056]
[1644610725871,0.505,42530.0,42529.0,0.41328056]
[1644610726320,0.04795,42532.0,42529.0,0.41328056]
[1644610726521,0.117664,42531.0,42529.0,0.41328056]
[1644610728921,0.117664,42531.0,42528.0,0.058825]
[1644610729126,0.117664,42531.0,42527.0,0.117649]
[1644610729877,0.44779676,42530.0,42519.0,0.40204388]
[1644610730070,0.05885,42527.0,42519.0,0.40204388]
[1644610730370,0.07614027,42523.0,42516.0,0.05073348]
[1644610730571,0.07614027,42523.0,42516.0,0.10073348]
[1644610730572,0.0433,42522.0,42516.0,0.10073348]
[1644610730968,0.0433,42522.0,42516.0,0.1]
[1644610731172,0.40426102,42517.0,42516.0,0.1]
[1644610731370,0.44756102,42517.0,42516.0,0.1]
[1644610731772,0.07580056,42516.0,42511.0,0.00043025]
[1644610731974,0.07580056,42516.0,42500.0,0.0007]
[1644610731975,0.0433,42515.0,42500.0,0.0007]
[1644610732173,0.117709,42514.0,42511.0,0.00042917]
[1644610732371,0.0433,42513.0,42511.0,0.00042917]
[1644610733174,0.0433,42513.0,42500.0,0.11842438]
[1644610733378,0.0433,42513.0,42500.0,0.0007]
[1644610733379,0.08139798,42505.0,42500.0,0.0007]
[1644610733627,0.117733,42505.0,42501.0,0.29450114]
[1644610733928,0.13002481,42522.0,42504.0,0.05]
[1644610734128,0.13002481,42522.0,42502.0,0.3]
[1644610734129,0.505,42523.0,42508.0,0.058842]
[1644610734330,0.04469419,42530.0,42512.0,0.11767]
[1644610734331,0.18165646,42530.0,42512.0,0.11767]
[1644610734532,0.00034266,42521.0,42514.0,0.17649]
[1644610734732,0.00034266,42521.0,42518.0,0.19584532]
[1644610734927,0.00034266,42521.0,42518.0,0.24584532]
[1644610735127,0.00034266,42521.0,42519.0,0.058827]
[1644610735328,0.00034266,42521.0,42518.0,0.29584532]
[1644610735527,0.058833,42524.0,42519.0,0.1176629]
[1644610735728,0.505,42529.0,42522.0,0.05]
[1644610735931,0.0433,42541.0,42522.0,0.05]
[1644610735932,0.05,42536.0,42523.0,0.17644137]
[1644610736130,0.505,42538.0,42523.0,0.16644137]
[1644610736336,0.505,42538.0,42529.0,0.05]
[1644610736528,0.505,42538.0,42533.0,0.058811]
[1644610737027,0.00047107,42536.0,42534.0,0.05]
[1644610737231,0.00047107,42536.0,42535.0,0.05]
[1644610737871,0.00047107,42536.0,42534.0,0.05880842]
[1644610738070,0.117633,42541.0,42534.0,0.10880842]
[1644610738270,0.30538722,42543.0,42535.0,0.05]
[1644610739071,0.058816,42540.0,42538.0,0.36459185]
[1644610739272,0.058816,42540.0,42538.0,0.46459185]
[1644610739470,0.505,42544.0,42538.0,0.52340385]
[1644610739670,0.505,42544.0,42540.0,0.31801868]
[1644610739872,0.505,42544.0,42538.0,0.52340385]
[1644610740273,0.505,42544.0,42539.0,0.05880703]
[1644610740472,0.01,42549.0,42541.0,0.24634761]
[1644610740672,0.01,42549.0,42543.0,0.0588]
[1644610741430,0.01,42549.0,42547.0,0.28534587]
[1644610741624,0.01,42549.0,42548.0,0.5796904]
[1644610741824,0.555,42563.0,42548.0,0.20255874]
[1644610742028,0.5297,42574.0,42551.0,0.05]
[1644610742232,0.0348532,42579.0,42571.0,0.75541617]
[1644610742233,0.5,42573.0,42571.0,0.75541617]
[1644610742431,0.5,42573.0,42572.0,0.329813]
[1644610742638,0.058765,42579.0,42572.0,0.1]
[1644610742833,0.79767419,42590.0,42572.0,0.1]
[1644610743026,0.79767419,42590.0,42577.0,0.20039118]
[1644610743226,0.79767419,42590.0,42577.0,0.30039118]
[1644610743427,0.79767419,42590.0,42582.0,0.2932774]
[1644610743731,0.058747,42592.0,42582.0,0.3932774]
[1644610743927,0.00027153,42595.0,42582.0,0.3932774]
[1644610744133,0.05,42597.0,42582.0,0.3932774]
[1644610744134,0.00027153,42591.0,42582.0,0.3932774]
[1644610744326,0.05,42597.0,42582.0,0.1]
[1644610744327,0.30027153,42594.0,42582.0,0.1]
[1644610744528,0.26073112,42584.0,42583.0,0.058746]
[1644610744727,0.08938417,42592.0,42583.0,0.058746]
[1644610744981,0.05,42597.0,42583.0,0.058746]
[1644610744982,0.2885945,42591.0,42583.0,0.058746]
[1644610745176,0.28994934,42590.0,42583.0,0.058746]
[1644610745376,0.37295745,42588.0,42581.0,0.1]
[1644610745575,0.37340706,42588.0,42581.0,0.05]
[1644610745776,0.00044961,42588.0,42582.0,0.058754]
[1644610745980,0.00044961,42588.0,42579.0,0.40394571]
[1644610746176,0.00044961,42588.0,42580.0,0.28424024]
[1644610746378,0.00027153,42591.0,42580.0,0.28424024]
[1644610746581,0.555,42604.0,42580.0,0.33424024]
[1644610746582,0.00027153,42593.0,42580.0,0.33424024]
[1644610746777,0.00044961,42586.0,42584.0,1.05]
[1644610746993,0.00206971,42592.0,42586.0,0.17617]
[1644610747178,0.28366909,42591.0,42587.0,0.31652494]
[1644610747379,0.35822402,42593.0,42588.0,0.17617131]
[1644610747584,0.3,42596.0,42587.0,0.1]
[1644610747781,0.505,42600.0,42588.0,0.058724]
[1644610747988,0.505,42600.0,42591.0,0.117475]
[1644610748182,0.3,42605.0,42591.0,0.117475]
[1644610748381,0.28862455,42600.0,42595.0,0.33872537]
[1644610748621,0.28862455,42600.0,42595.0,0.33426632]
[1644610748820,0.28862455,42600.0,42595.0,0.05]
[1644610749028,0.07443693,42598.0,42595.0,0.05]
[1644610749222,0.07443693,42598.0,42593.0,0.108738]
[1644610749624,0.07443693,42598.0,42593.0,0.05]
[1644610750023,0.35383391,42597.0,42593.0,0.05]
[1644610750624,0.07478044,42598.0,42593.0,0.05]
[1644610750827,0.07478044,42598.0,42594.0,0.058737]
[1644610751126,0.31010123,42605.0,42594.0,0.058737]
[1644610751127,0.30872744,42605.0,42594.0,0.058737]
[1644610751326,0.1,42605.0,42594.0,0.058737]
[1644610751526,0.058734,42606.0,42600.0,0.28517004]
[1644610751731,0.01,42609.0,42601.0,0.33440962]
[1644610752776,0.01,42609.0,42606.0,0.117432]
[1644610752975,0.35375823,42607.0,42606.0,0.117432]
[1644610753174,0.35375823,42607.0,42606.0,0.167432]
[1644610753376,0.35375823,42607.0,42606.0,0.05]
[1644610753574,0.64523998,42607.0,42600.0,0.05660242]
[1644610753778,0.64523998,42607.0,42600.0,0.00660242]
[1644610753974,0.08937955,42601.0,42600.0,0.00660242]
[1644610754977,0.39372371,42601.0,42600.0,0.00660242]
[1644610755381,0.08937955,42601.0,42600.0,0.00660242]
[1644610755879,0.00046691,42603.0,42602.0,0.00052296]
[1644610756126,0.64580334,42607.0,42602.0,0.00052296]
[1644610756325,0.00046691,42603.0,42602.0,0.00052296]
[1644610756730,0.00046691,42603.0,42594.0,0.117468]
[1644610756731,1.38538261,42602.0,42594.0,0.117468]
[1644610756937,0.05,42596.0,42590.0,0.00041401]
[1644610757142,0.05,42596.0,42576.0,0.5105]
[1644610757143,0.10791817,42595.0,42576.0,0.5105]
[1644610757431,0.0861964,42583.0,42576.0,0.5105]
[1644610757629,0.0861964,42583.0,42569.0,0.23496372]
[1644610757630,0.0433,42582.0,42569.0,0.23496372]
[1644610757829,0.0433,42582.0,42577.0,0.31372005]
[1644610758131,0.0433,42582.0,42577.0,0.37248505]
[1644610758728,0.0433,42582.0,42577.0,0.37283598]
[1644610759128,0.0433,42582.0,42577.0,0.05911593]
[1644610759327,0.10999823,42582.0,42577.0,0.05911593]
[1644610759731,0.10999823,42582.0,42577.0,0.058765]
[1644610759975,0.08745013,42574.0,42569.0,0.117537]
[1644610760174,0.0433,42573.0,42569.0,0.117537]
[1644610760780,0.29041946,42572.0,42569.0,0.117537]
[1644610760974,0.0433,42571.0,42565.0,0.117548]
[1644610761175,0.33489824,42571.0,42567.0,0.30126244]
[1644610761474,0.0433,42571.0,42565.0,0.117548]
[1644610761676,0.0433,42571.0,42567.0,0.31498951]
[1644610761872,0.0433,42571.0,42565.0,0.117548]
[1644610762076,0.05878,42569.0,42565.0,0.117548]
[1644610762274,0.05878,42569.0,42567.0,0.00037296]
[1644610762275,0.0433,42568.0,42567.0,0.00037296]
[1644610762678,0.03600751,42568.0,42567.0,0.00037296]
[1644610763075,0.03600751,42568.0,42567.0,0.34760357]
[1644610763383,0.03600751,42568.0,42567.0,0.34723061]
[1644610764026,0.03600751,42568.0,42565.0,0.00037297]
[1644610764027,0.32036092,42568.0,42565.0,0.00037297]
[1644610764426,0.32036092,42568.0,42564.0,0.0011]
[1644610764427,0.05,42567.0,42564.0,0.0011]
[1644610764628,0.0433,42566.0,42564.0,0.00147298]
[1644610764825,0.36718475,42565.0,42564.0,0.00147298]
[1644610765026,0.71838405,42565.0,42564.0,0.00147298]
[1644610765725,0.71838405,42565.0,42564.0,0.0011]
[1644610766130,0.81838405,42565.0,42564.0,0.0011]
[1644610767476,0.81838405,42565.0,42556.0,0.0011]
[1644610767477,1.05,42564.0,42556.0,0.0011]
[1644610767777,0.1343303,42559.0,42556.0,0.0011]
[1644610767975,0.37274654,42558.0,42556.0,0.0011]
[1644610768978,0.36586472,42558.0,42556.0,0.0011]
[1644610769189,0.65114306,42558.0,42556.0,0.0011]
[1644610769576,0.0433,42558.0,42556.0,0.0011]
[1644610770677,0.0433,42558.0,42556.0,0.0511]
[1644610770877,0.0433,42558.0,42556.0,0.0011]
[1644610772732,0.33680018,42558.0,42556.0,0.0011]
[1644610773126,0.3163649,42557.0,42556.0,0.0011]
[1644610773330,0.4596649,42557.0,42546.0,0.42]
[1644610773531,1.05,42550.0,42537.0,0.0011]
[1644610773737,0.61547183,42549.0,42537.0,0.0011]
[1644610774130,0.61547183,42549.0,42541.0,0.31079843]
[1644610774131,0.08659846,42542.0,42541.0,0.31079843]
[1644610774330,0.47865853,42549.0,42541.0,0.31079843]
[1644610774631,0.53104492,42565.0,42541.0,0.31079843]
[1644610774632,0.167587,42559.0,42545.0,0.05879523]
[1644610774900,0.167587,42559.0,42543.0,0.117596]
[1644610774901,0.5,42557.0,42543.0,0.117596]
[1644610775098,0.167587,42559.0,42543.0,0.117596]
[1644610775301,0.32093262,42551.0,42543.0,0.117596]
[1644610775501,0.28866933,42547.0,42541.0,0.31079843]
[1644610775697,0.28866933,42547.0,42541.0,0.36079843]
[1644610775895,0.28866933,42547.0,42542.0,0.23729499]
[1644610776099,0.0433,42549.0,42542.0,0.23729499]
[1644610776304,0.00130226,42558.0,42542.0,0.23729499]
[1644610776305,0.00130226,42558.0,42543.0,0.058807]
[1644610776502,0.00130226,42558.0,42544.0,0.3]
[1644610776700,0.00130226,42558.0,42546.0,0.117579]
[1644610776897,0.00130226,42558.0,42547.0,0.32503259]
[1644610777097,0.00130226,42558.0,42553.0,0.38499232]
[1644610777300,0.058793,42556.0,42553.0,0.43499232]
[1644610777901,0.058793,42556.0,42554.0,0.31775336]
[1644610778721,0.058793,42556.0,42553.0,0.05]
[1644610778937,0.058793,42556.0,42552.0,0.05]
[1644610778938,0.08778801,42555.0,42552.0,0.05]
[1644610779126,0.20538701,42555.0,42553.0,0.00044806]
[1644610780022,0.058799,42554.0,42553.0,0.00044806]
[1644610780223,0.058799,42554.0,42549.0,0.05879883]
[1644610780424,0.058799,42554.0,42552.0,0.00044807]
[1644610780826,0.058799,42554.0,42553.0,0.28503427]
[1644610781028,0.058799,42554.0,42553.0,0.64838342]
[1644610781330,0.00130145,42557.0,42553.0,0.74838342]
[1644610782384,0.00130145,42557.0,42553.0,0.64838342]
[1644610782579,0.00130145,42557.0,42553.0,0.74838342]
[1644610782780,0.00130145,42557.0,42554.0,0.058784]
[1644610782980,0.00130145,42557.0,42555.0,0.81657286]
[1644610783180,0.00125139,42558.0,42556.0,1.05]
[1644610783181,0.00025069,42558.0,42556.0,1.05]
[1644610783382,0.00025069,42558.0,42556.0,0.1]
[1644610783581,0.00025069,42558.0,42555.0,0.54520923]
[1644610783781,0.00025069,42558.0,42555.0,0.23509574]
[1644610783986,0.00025069,42558.0,42555.0,0.05877374]
[1644610784185,0.00025069,42558.0,42553.0,0.00044806]
[1644610784186,0.40008246,42557.0,42553.0,0.00044806]
[1644610784381,0.12409372,42557.0,42553.0,0.00044806]
[1644610784982,0.12409372,42557.0,42552.0,0.34911524]
[1644610785182,0.5053187,42557.0,42553.0,0.00044806]
[1644610785385,0.12409372,42557.0,42553.0,0.00044806]
[1644610785584,0.0433,42557.0,42556.0,0.34162017]
[1644610785783,0.0433,42557.0,42556.0,0.39162017]
[1644610786233,0.0433,42557.0,42556.0,0.05]
[1644610786432,0.0433,42557.0,42555.0,0.00059385]
[1644610787236,0.37764589,42557.0,42555.0,0.00059385]
[1644610787640,0.30753825,42556.0,42555.0,0.00059385]
[1644610787937,0.35083825,42556.0,42555.0,0.00059385]
[1644610788538,0.0433,42556.0,42555.0,0.00059385]
[1644610790184,0.3375043,42557.0,42555.0,0.00059385]
[1644610790388,0.2933,42556.0,42555.0,0.00059385]
[1644610790581,0.2933,42556.0,42553.0,0.00044806]
[1644610790582,0.44461561,42556.0,42553.0,0.00044806]
[1644610790783,0.12518322,42555.0,42553.0,0.00044806]
[1644610790980,0.0433,42554.0,42541.0,0.01]
[1644610791181,0.36308041,42553.0,42552.0,0.00044806]
[1644610791383,0.50638041,42553.0,42552.0,0.00044806]
[1644610792182,0.07017841,42545.0,42542.0,0.22996227]
[1644610792482,0.0433,42547.0,42543.0,0.05]
[1644610792686,0.0433,42547.0,42541.0,0.48663373]
[1644610792983,0.0433,42547.0,42543.0,0.058809]
[1644610793182,0.058807,42546.0,42543.0,0.058809]
[1644610793625,0.0567879,42546.0,42543.0,0.05925716]
[1644610794027,0.0567879,42546.0,42543.0,0.11805763]
[1644610794224,0.0567879,42546.0,42543.0,0.05925716]
[1644610794630,0.0567879,42546.0,42543.0,0.058809]
[1644610795227,0.0567879,42546.0,42544.0,0.05]
[1644610795427,0.31186798,42545.0,42542.0,0.00044817]
[1644610795631,0.50551758,42544.0,42542.0,0.00044817]
[1644610795829,0.50551758,42544.0,42541.0,0.01]
[1644610795830,0.60551758,42544.0,42541.0,0.01]
[1644610796029,0.08677486,42543.0,42541.0,0.01]
[1644610796226,0.0433,42542.0,42541.0,0.01]
[1644610797780,0.36220476,42542.0,42541.0,0.01]
[1644610797993,0.05869644,42541.0,42537.0,0.0011]
[1644610798181,0.0433,42540.0,42537.0,0.0011]
[1644610798381,0.43331383,42539.0,42537.0,0.0011]
[1644610798581,0.0433,42538.0,42537.0,0.0011]
[1644610801148,0.117655,42539.0,42537.0,0.0011]
[1644610801745,0.46535263,42539.0,42537.0,0.0011]
[1644610802146,0.117655,42539.0,42537.0,0.0011]
[1644610802355,0.05882,42540.0,42537.0,0.0511]
[1644610802555,0.70667105,42542.0,42537.0,0.0511]
[1644610802748,0.00148105,42542.0,42537.0,0.1011]
[1644610802947,0.00148105,42542.0,42538.0,0.31552697]
[1644610803148,0.00148105,42542.0,42540.0,0.32063787]
[1644610803354,0.00148105,42542.0,42541.0,0.24419674]
[1644610803548,0.00148105,42542.0,42539.0,0.11761]
[1644610803753,0.00148105,42542.0,42540.0,0.1]
[1644610804253,0.00148105,42542.0,42539.0,0.11761]
[1644610804254,0.11691892,42542.0,42539.0,0.0060335]
[1644610804451,0.65,42539.0,42537.0,0.00154581]
[1644610804649,0.0433,42538.0,42537.0,0.00154581]
[1644610805086,0.0433,42538.0,42524.0,0.0011]
[1644610805087,0.2,42533.0,42524.0,0.0011]
[1644610805286,0.05,42526.0,42524.0,0.0011]
[1644610805486,0.05,42526.0,42512.0,0.0011]
[1644610805487,0.4,42523.0,42512.0,0.0011]
[1644610805683,0.05,42517.0,42512.0,0.0011]
[1644610805882,0.55,42515.0,42509.0,0.001]
[1644610806085,0.05,42512.0,42509.0,0.001]
[1644610806285,0.0433,42511.0,42509.0,0.001]
[1644610806482,0.34242771,42511.0,42509.0,0.001]
[1644610806685,0.40129871,42511.0,42509.0,0.001]
[1644610806886,0.50129871,42511.0,42509.0,0.001]
[1644610807886,0.40129871,42511.0,42509.0,0.001]
[1644610808091,0.102171,42511.0,42509.0,0.001]
[1644610808491,0.0433,42511.0,42509.0,0.001]
[1644610808741,0.0433,42518.0,42509.0,0.001]
[1644610808937,0.0433,42518.0,42511.0,0.24757837]
[1644610809256,0.0433,42518.0,42517.0,0.52359201]
[1644610809440,0.0433,42518.0,42517.0,0.57359201]
[1644610809635,0.102146,42518.0,42517.0,0.57359201]
[1644610810537,0.102146,42518.0,42517.0,0.05]
[1644610810840,0.17091826,42518.0,42516.0,0.05]
[1644610811041,0.17091826,42518.0,42517.0,0.05]
[1644610811240,0.17091826,42518.0,42515.0,0.100436]
[1644610811438,0.50102356,42518.0,42510.0,0.117702]
[1644610811636,0.50102356,42518.0,42515.0,0.000436]
[1644610812141,0.17091826,42518.0,42515.0,0.000436]
[1644610812390,0.27091826,42518.0,42515.0,0.000436]
[1644610812583,0.27091826,42518.0,42511.0,0.17989999]
[1644610812789,1.05,42517.0,42511.0,0.17989999]
[1644610812982,0.32693482,42515.0,42511.0,0.12989999]
[1644610813181,0.0433,42514.0,42511.0,0.12989999]
[1644610813482,0.30597348,42512.0,42511.0,0.12989999]
[1644610813780,0.74818783,42512.0,42511.0,0.12989999]
[1644610814183,0.74818783,42512.0,42511.0,0.17989999]
[1644610814384,0.10217,42512.0,42511.0,0.17989999]
[1644610814782,0.10217,42512.0,42511.0,0.22989999]
[1644610815787,0.10217,42512.0,42511.0,0.54513544]
[1644610815984,0.0433,42512.0,42511.0,0.54513544]
[1644610816241,0.00140824,42517.0,42511.0,0.54513544]
[1644610816437,0.00140824,42517.0,42512.0,0.058843]
[1644610816638,0.00140824,42517.0,42513.0,0.24203579]
[1644610816835,0.00140824,42517.0,42512.0,0.108843]
[1644610817037,0.00140824,42517.0,42513.0,0.05]
[1644610817436,0.00140824,42517.0,42512.0,0.058843]
[1644610817635,0.00140824,42517.0,42512.0,0.05926815]
[1644610817837,0.00140824,42517.0,42512.0,0.25073771]
[1644610818039,0.00140824,42517.0,42512.0,0.05926815]
[1644610818340,0.14710111,42517.0,42512.0,0.00495367]
[1644610818538,0.14710111,42517.0,42512.0,0.00452852]
[1644610818737,0.14710111,42517.0,42512.0,0.00495367]
[1644610818941,0.0433,42516.0,42512.0,0.00495367]
[1644610819138,0.117742,42515.0,42512.0,0.00495367]
[1644610819337,0.30386605,42513.0,42512.0,0.00495367]
[1644610819536,0.59913953,42513.0,42512.0,0.00495367]
[1644610819903,0.69913953,42513.0,42512.0,0.00452852]
[1644610820097,0.33857348,42513.0,42512.0,0.00452852]
[1644610820296,0.102168,42513.0,42512.0,0.00452852]
[1644610822499,0.39248004,42513.0,42512.0,0.00452852]
[1644610822902,0.102168,42513.0,42512.0,0.00452852]
[1644610823104,0.44252008,42513.0,42512.0,0.00452852]
[1644610824131,0.54252008,42513.0,42512.0,0.00452852]
[1644610824331,0.54252008,42513.0,42509.0,0.001]
[1644610824332,1.05,42512.0,42509.0,0.001]
[1644610824532,0.058878,42508.0,42503.0,0.0011]
[1644610824733,0.05,42504.0,42503.0,0.0011]
[1644610824930,0.05,42504.0,42495.0,0.106151]
[1644610824931,0.0933,42504.0,42495.0,0.106151]
[1644610825132,0.07668252,42497.0,42496.0,0.0001]
[1644610825336,0.42974064,42497.0,42495.0,0.106151]
[1644610825533,0.07668252,42497.0,42495.0,0.106151]
[1644610825936,0.13556652,42497.0,42495.0,0.106151]
[1644610826534,0.0433,42496.0,42493.0,0.062287]
[1644610826732,0.28520524,42495.0,42493.0,0.0034]
[1644610826933,0.32850524,42495.0,42493.0,0.0033]
[1644610827233,1.03447524,42495.0,42493.0,0.0033]
[1644610827682,0.74927,42495.0,42493.0,0.0033]
[1644610828279,0.76193667,42495.0,42493.0,0.0033]
[1644610828681,0.75480121,42495.0,42493.0,0.0033]
[1644610829081,0.75480121,42495.0,42493.0,0.062186]
[1644610829282,0.71863667,42495.0,42493.0,0.062286]
[1644610829779,0.71863667,42495.0,42493.0,0.40220902]
[1644610829983,0.71863667,42495.0,42493.0,0.062286]
[1644610830482,0.71863667,42495.0,42493.0,0.121168]
[1644610830682,0.72001482,42495.0,42494.0,0.00382364]
[1644610832128,0.82001482,42495.0,42494.0,0.00382364]
[1644610832341,0.72001482,42495.0,42494.0,0.00382364]
[1644610835391,0.72001482,42495.0,42494.0,0.61053384]
[1644610835590,0.72001482,42495.0,42494.0,0.66053384]
[1644610835992,0.72001482,42495.0,42494.0,0.38787044]
[1644610836794,0.72501482,42495.0,42494.0,0.38787044]
[1644610838934,0.1906997,42495.0,42494.0,0.38787044]
[1644610839134,0.18459864,42495.0,42494.0,0.38787044]
[1644610841536,0.2197773,42495.0,42494.0,0.38787044]
[1644610841736,0.18459864,42495.0,42494.0,0.33787044]
[1644610842038,0.18459864,42495.0,42494.0,0.00382364]
[1644610842882,0.18459864,42495.0,42494.0,0.36113908]
[1644610843081,0.18459864,42495.0,42494.0,0.00382364]
[1644610844081,0.18459864,42495.0,42494.0,0.70340936]
[1644610844484,0.18459864,42495.0,42494.0,0.75340936]
[1644610844682,0.235485,42515.0,42496.0,1.05]
[1644610844886,0.5,42507.0,42498.0,0.058861]
[1644610845182,0.5,42507.0,42503.0,0.34675128]
[1644610845384,0.05886,42504.0,42500.0,0.00012713]
[1644610845881,0.07194627,42503.0,42500.0,0.00012713]
[1644610846332,0.07194627,42503.0,42499.0,0.058873]
[1644610846536,0.058874,42502.0,42499.0,0.167747]
[1644610846733,0.058874,42502.0,42500.0,0.05]
[1644610847232,0.058874,42502.0,42499.0,0.117747]
[1644610848135,0.02302243,42501.0,42499.0,0.117747]
[1644610848433,0.14076643,42501.0,42500.0,0.058872]
[1644610848835,0.14076643,42501.0,42500.0,0.108872]
[1644610849033,0.02302243,42501.0,42500.0,0.108872]
[1644610849432,0.02302243,42501.0,42500.0,0.05]
[1644610849633,0.01681484,42501.0,42500.0,0.05]
[1644610850188,0.01681484,42501.0,42499.0,0.11774053]
[1644610850586,0.01791442,42501.0,42499.0,0.11774053]
[1644610850986,0.01791442,42501.0,42499.0,0.23547653]
[1644610851387,0.01791442,42501.0,42500.0,0.05]
[1644610853308,0.01291442,42501.0,42500.0,0.05]
[1644610853753,0.01291442,42501.0,42499.0,0.23547653]
[1644610854752,0.01291442,42501.0,42500.0,0.05]
[1644610855553,0.01291442,42501.0,42500.0,0.05057331]
[1644610855963,0.01291442,42501.0,42500.0,0.00057331]
[1644610856359,0.05621442,42501.0,42493.0,0.04322255]
[1644610856556,0.058883,42499.0,42494.0,0.058883]
[1644610856859,0.058883,42499.0,42497.0,0.19261664]
[1644610856860,0.102183,42499.0,42497.0,0.19261664]
[1644610857054,0.058883,42499.0,42497.0,0.25147972]
[1644610857254,0.058883,42499.0,42497.0,0.35147972]
[1644610857489,0.058883,42499.0,42497.0,0.41034272]
[1644610857490,0.01181484,42498.0,42497.0,0.41034272]
[1644610860193,0.04836615,42500.0,42499.0,1.05]
[1644610860401,0.4794425,42520.0,42501.0,1.05]
[1644610860602,0.5,42516.0,42507.0,0.05]
[1644610860792,0.5,42516.0,42512.0,0.05]
[1644610860992,0.5,42516.0,42507.0,0.05]
[1644610861235,0.30089912,42515.0,42512.0,0.058837]
[1644610861435,0.19053475,42520.0,42511.0,0.23535232]
[1644610861436,0.00047102,42513.0,42511.0,0.23535232]
[1644610861639,0.00047102,42513.0,42511.0,0.35302632]
[1644610861834,0.00047102,42513.0,42512.0,0.05]
[1644610862039,0.13068171,42523.0,42512.0,0.1]
[1644610862236,0.505,42524.0,42512.0,0.1]
[1644610862437,0.05,42529.0,42520.0,0.05]
[1644610862636,0.28063055,42534.0,42528.0,0.18930218]
[1644610863038,0.28063055,42534.0,42529.0,0.05882111]
[1644610863340,0.16205115,42541.0,42529.0,0.05882111]
[1644610863341,0.16205115,42541.0,42533.0,0.05]
[1644610863640,0.02347,42550.0,42538.0,0.05]
[1644610863641,0.01,42549.0,42538.0,0.05]
[1644610863838,0.01,42549.0,42532.0,0.176424]
[1644610863839,0.11205115,42548.0,42532.0,0.176424]
[1644610864140,0.058805,42547.0,42535.0,0.05882123]
[1644610864338,0.06,42549.0,42533.0,0.1]
[1644610864339,0.07662377,42534.0,42533.0,0.1]
[1644610864539,0.07662377,42534.0,42533.0,0.05]
[1644610864736,0.07662377,42534.0,42532.0,0.05]
[1644610865186,0.07662377,42534.0,42533.0,0.05]
[1644610865388,0.07662377,42534.0,42532.0,0.05]
[1644610865788,0.07662377,42534.0,42532.0,0.05882]
[1644610865986,0.07662377,42534.0,42522.0,0.235296]
[1644610866787,0.058843,42531.0,42516.0,0.235319]
[1644610866987,1.974152,42533.0,42512.0,0.11823493]
[1644610866988,0.3433,42530.0,42512.0,0.11823493]
[1644610867193,0.5483,42529.0,42512.0,0.11823493]
[1644610867385,0.6483,42529.0,42512.0,0.11823493]
[1644610867585,0.06483427,42516.0,42512.0,0.11823493]
[1644610867787,0.0433,42515.0,42512.0,0.11823493]
[1644610867992,0.0433,42515.0,42513.0,0.058856]
[1644610869031,0.0433,42515.0,42513.0,0.108856]
[1644610869235,0.0433,42515.0,42513.0,0.058856]
[1644610869433,0.0433,42515.0,42513.0,0.108856]
[1644610869837,0.0433,42515.0,42514.0,0.18740524]
[1644610870033,0.12603962,42515.0,42514.0,0.05]
[1644610870435,0.12603962,42515.0,42513.0,0.058856]
[1644610871734,0.29793002,42514.0,42513.0,0.058856]
[1644610871935,0.62381778,42514.0,42512.0,0.117716]
[1644610872136,0.34123002,42514.0,42512.0,0.117716]